fUSD/lending_fUSD_20240619
["ID","MTS","AMOUNT","RATE_DAILY","PERIOD"]
[329894791,1718801551418,-500.0,0.00013972,2]
[329894792,1718801551443,-8095.14,0.00013972,2]
[329894793,1718801551464,-518.41,0.00013972,2]
[329894794,1718801551486,-500.0,0.00013972,2]
[329894795,1718801551508,-1372.42,0.00013972,2]
[329894796,1718801551530,-500.0,0.00013972,2]
[329894797,1718801551552,-882.07,0.00013972,2]
[329894798,1718801551574,-500.0,0.00013972,2]
[329894799,1718801551596,-961.19,0.00013972,2]
[329894800,1718801551623,-2564.41,0.00013972,2]
[329894801,1718801551646,-8194.01,0.00013972,2]
[329894802,1718801551671,-500.0,0.00013972,2]
[329894803,1718801551693,-1187.33,0.00013972,2]
[329894804,1718801551715,-2961.69,0.00013972,2]
[329894805,1718801551737,-845.85,0.00013972,2]
[329894806,1718801551760,-14888.7,0.00013972,2]
[329894807,1718801551782,-548.01,0.00013972,2]
[329894808,1718801551805,-715.9,0.00013972,2]
[329894809,1718801551827,-1134.97,0.00013972,2]
[329894810,1718801551849,-632.33,0.00013972,2]
[329894811,1718801551871,-1985.08,0.00013972,2]
[329894812,1718801551892,-500.0,0.00013972,2]
[329894813,1718801551913,-6901.41,0.00013972,2]
[329894814,1718801551935,-2751.76,0.00013972,2]
[329894815,1718801551956,-904.82,0.00013972,2]
[329894816,1718801551977,-1766.66,0.00013972,2]
[329894817,1718801551999,-570.75,0.00013972,2]
[329894818,1718801552022,-2373.99,0.00013972,2]
[329894819,1718801552047,-500.0,0.00013972,2]
[329894820,1718801552069,-1697.21,0.00013972,2]
[329894821,1718801552090,-500.0,0.00013972,2]
[329894822,1718801552112,-500.0,0.00013972,2]
[329894823,1718801552134,-3826.53,0.00013972,2]
[329894824,1718801552159,-500.0,0.00013972,2]
[329894825,1718801552184,-500.0,0.00013972,2]
[329894826,1718801552206,-4473.54,0.00013972,2]
[329894827,1718801552228,-3115.16,0.00013972,2]
[329894828,1718801552250,-1779.67,0.00013972,2]
[329894829,1718801552272,-1262.94,0.00013972,2]
[329894830,1718801552298,-500.0,0.00013972,2]
[329894831,1718801552319,-1433.34,0.00013972,2]
[329894832,1718801552345,-3314.64,0.00013972,2]
[329894833,1718801552370,-1581.02,0.00013972,2]
[329894834,1718801552392,-1555.69,0.00013972,2]
[329894835,1718801552413,-500.0,0.00013972,2]
[329894836,1718801552434,-500.0,0.00013972,2]
[329894837,1718801552456,-828.91,0.00013972,2]
[329894838,1718801552478,-500.0,0.00013972,2]
[329894839,1718801552499,-1251.37,0.00013972,2]
[329894840,1718801552521,-500.0,0.00013972,2]
[329894841,1718801552543,-618.76,0.00013972,2]
[329894842,1718801552565,-854.39,0.00013972,2]
[329894843,1718801552587,-1666.42,0.00013972,2]
[329894844,1718801552609,-17100.69,0.00013972,2]
[329894845,1718801552631,-940.19,0.00013972,2]
[329894846,1718801552653,-1970.91,0.00013972,2]
[329894847,1718801552677,-844.0,0.00013972,2]
[329894848,1718801552699,-4534.47,0.00013972,2]
[329894849,1718801552722,-1099.6,0.00013972,2]
[329894850,1718801552747,-36890.56,0.00013972,2]
[329894851,1718801552770,-1019.08,0.00013972,2]
[329894852,1718801552793,-500.0,0.00013972,2]
[329894853,1718801552816,-1437.27,0.00013972,2]
[329894854,1718801552837,-513.47,0.00013972,2]
[329894855,1718801552860,-3201.42,0.00013972,2]
[329894856,1718801552882,-1456.48,0.00013972,2]
[329894857,1718801552905,-906.32,0.00013972,2]
[329894858,1718801552927,-812.52,0.00013972,2]
[329894859,1718801552951,-3996.92,0.00013972,2]
[329894860,1718801552973,-1131.05,0.00013972,2]
[329894861,1718801552997,-2483.42,0.00013972,2]
[329894862,1718801553020,-500.0,0.00013972,2]
[329894863,1718801553044,-1305.27,0.00013972,2]
[329894864,1718801553067,-11608.9,0.00013972,2]
[329894865,1718801553088,-788.03,0.00013972,2]
[329894866,1718801553111,-735.53,0.00013972,2]
[329894867,1718801553133,-3003.96,0.00013972,2]
[329894868,1718801553155,-572.43,0.00013972,2]
[329894869,1718801553177,-674.59,0.00013972,2]
[329894870,1718801553200,-1445.82,0.00013972,2]
[329894871,1718801553225,-1800.53,0.00013972,2]
[329894872,1718801553248,-38472.66,0.00013972,2]
[329894873,1718801553271,-5292.64,0.00013972,2]
[329894874,1718801553298,-833.55,0.00013972,2]
[329894875,1718801553321,-2465.03,0.00013972,2]
[329894876,1718801553344,-1408.84,0.00013972,2]
[329894877,1718801553367,-711.46,0.00013972,2]
[329894878,1718801553392,-500.0,0.00013972,2]
[329894879,1718801553413,-500.0,0.00013972,2]
[329894880,1718801553435,-500.0,0.00013972,2]
[329894881,1718801553456,-500.0,0.00013972,2]
[329894882,1718801553479,-500.0,0.00013972,2]
[329894883,1718801553521,-589.71,0.00013972,2]
[329894884,1718801553575,-1184.07,0.00013972,2]
[329894885,1718801553637,-500.0,0.00013972,2]
[329894886,1718801553686,-1673.12,0.00013972,2]
[329894887,1718801553728,-708.09,0.00013972,2]
[329894888,1718801553751,-3205.54,0.00013972,2]
[329894889,1718801553773,-500.0,0.00013972,2]
[329894890,1718801553795,-500.0,0.00013972,2]
[329894891,1718801553818,-1105.59,0.00013972,2]
[329894892,1718801553840,-3274.89,0.00013972,2]
[329894893,1718801553864,-1650.6,0.00013972,2]
[329894894,1718801553886,-2843.19,0.00013972,2]
[329894895,1718801553909,-905.11,0.00013972,2]
[329894896,1718801553931,-500.0,0.00013972,2]
[329894897,1718801553953,-1097.57,0.00013972,2]
[329894898,1718801553974,-774.55,0.00013972,2]
[329894899,1718801554000,-907.74,0.00013972,2]
[329894900,1718801554022,-873.95,0.00013972,2]
[329894901,1718801554045,-500.0,0.00013972,2]
[329894902,1718801554067,-509.56,0.00013972,2]
[329894903,1718801554089,-1616.9,0.00013972,2]
[329894904,1718801554111,-1637.87,0.00013972,2]
[329894905,1718801554135,-881.52,0.00013972,2]
[329894906,1718801554159,-14801.65,0.00013972,2]
[329894907,1718801554183,-2961.56,0.00013972,2]
[329894908,1718801554206,-813.42,0.00013972,2]
[329894909,1718801554229,-2100.0,0.00013978,2]
[329894910,1718801554252,-300.0,0.00013978,2]
[329894911,1718801554274,-209.14993316,0.00013999,2]
[329894912,1718801554302,-5903.55757461,0.00013999,2]
[329894913,1718801554328,-1133481.97394118,0.00014,2]
[329894914,1718801556834,-150.0,0.00013698,2]
[329894915,1718801556902,-150.0,0.00013698,2]
[329894916,1718801557030,-200.0,0.00013698,2]
[329894917,1718801557054,-36.39497332,0.00013698,2]
[329894940,1718801714638,1230.0,0.00024,30]
[329894984,1718802512067,10067.96204186,0.00010502,7]
[329895016,1718802633831,-1262.49708637,0.00010495,2]
[329895017,1718802633841,-49.65291363,0.00010495,2]
[329895018,1718802634042,-487.35020698,0.00010495,2]
[329895019,1718802634052,-2002.83994516,0.00010496,2]
[329895020,1718802634061,-762.42384341,0.00010497,2]
[329895021,1718802634071,-253.77976892,0.00010497,2]
[329895022,1718802634080,-1000.0,0.00010502,2]
[329895023,1718802634089,-274.62891689,0.00010504,2]
[329895024,1718802634100,-544.4915,0.00010504,2]
[329895035,1718802634174,-67.92406042,0.00010504,2]
[329895037,1718802634183,-300.0,0.00011514,2]
[329895039,1718802634192,-2152.952199,0.00011515,2]
[329895041,1718802634201,-250.0,0.00011873,2]
[329895042,1718802634210,-289.59,0.0001188,2]
[329895043,1718802634220,-1528.03374058,0.00011907,2]
[329895059,1718802638820,-0.43625942,0.00011907,2]
[329895060,1718802638830,-322.08,0.00011907,2]
[329895061,1718802638840,-1280.15,0.00012089,2]
[329895062,1718802638850,-303.61131045,0.0001215,2]
[329895063,1718802639044,-1806.43868955,0.0001215,2]
[329895065,1718802639054,-499.99,0.0001215,2]
[329895066,1718802639064,-487.26,0.0001219,2]
[329895067,1718802639074,-250.0,0.00012207,2]
[329895068,1718802639084,-156.18,0.00012221,2]
[329895069,1718802639094,-344.62,0.00012284,2]
[329895070,1718802639104,-463.28915045,0.00012284,2]
[329895071,1718802639116,-625.42084955,0.00012284,2]
[329895072,1718802639127,-514.25,0.00012303,2]
[329895073,1718802639137,-3867.59,0.00012303,2]
[329895074,1718802639147,-150.0,0.00012349,2]
[329895075,1718802639157,-600.0,0.00012349,2]
[329895076,1718802639167,-420.0,0.00012646,2]
[329895077,1718802639177,-2747.1,0.00012896,2]
[329895078,1718802639187,-150.99,0.00012896,2]
[329895079,1718802639197,-2284.16,0.00012924,2]
[329895081,1718802639207,-400.0,0.00013056,2]
[329895082,1718802639216,-227.973289,0.00013425,2]
[329895084,1718802639230,-712.066711,0.00013425,2]
[329895085,1718802639241,-150.0,0.000135,2]
[329895086,1718802639251,-328.7,0.000135,2]
[329895087,1718802639261,-171.12979609,0.00013598,2]
[329895088,1718802639271,-21.99055437,0.00013598,2]
[329895089,1718802639284,-312.41291244,0.00013598,2]
[329895090,1718802639294,-9.30031542,0.00013598,2]
[329895093,1718802642776,-690.91,0.00010682,2]
[329895094,1718802642786,-690.91,0.00012946,2]
[329895095,1718802642796,-1933.38,0.00013598,2]
[329895166,1718802652621,-1.373e-05,0.00013598,2]
[329895167,1718802653167,-529.68999997,0.00013598,2]
[329895168,1718802653194,-1954.10039998,0.00013598,2]
[329895169,1718802653205,-5573.5292709,0.00013598,2]
[329895170,1718802653215,-2500.0,0.00013598,2]
[329895171,1718802653224,-4620.61640161,0.00013684,2]
[329895172,1718802653233,-193.16948895,0.00013688,2]
[329895173,1718802653242,-155.0,0.00013696,2]
[329895174,1718802653252,-491.18084441,0.00013696,2]
[329895175,1718802653261,-932.52594394,0.00013696,2]
[329895176,1718802653270,-155.0,0.00013696,2]
[329895177,1718802653279,-235.40449572,0.00013696,2]
[329895178,1718802653289,-429.8525504,0.00013696,2]
[329895179,1718802653298,-155.06158257,0.00013696,2]
[329895180,1718802653306,-2196.89348564,0.00013696,2]
[329895181,1718802653314,-155.05936096,0.00013696,2]
[329895182,1718802653324,-166.89679403,0.00013696,2]
[329895183,1718802653333,-10528.65928451,0.00013696,2]
[329895184,1718802653342,-2234.55230294,0.00013696,2]
[329895185,1718802653352,-206.22984294,0.00013696,2]
[329895186,1718802653361,-364.20577069,0.00013696,2]
[329895187,1718802653480,-538.4252942,0.00013696,2]
[329895188,1718802653489,-482.08388994,0.00013696,2]
[329895189,1718802653500,-4296.3595835,0.00013696,2]
[329895190,1718802653509,-155.0,0.00013696,2]
[329895191,1718802653518,-205.15170629,0.00013696,2]
[329895192,1718802653527,-155.0,0.00013696,2]
[329895193,1718802653536,-317.2184993,0.00013696,2]
[329895194,1718802653545,-155.07093736,0.00013696,2]
[329895195,1718802653554,-155.13180015,0.00013696,2]
[329895196,1718802653563,-535.67,0.00013696,2]
[329895197,1718802653573,-1344.32,0.00013696,2]
[329895198,1718802653582,-259.93969938,0.00013697,2]
[329895199,1718802653591,-3066.55001275,0.00013697,2]
[329895200,1718802653600,-299.71801521,0.00013698,2]
[329895201,1718802653610,-500.0,0.00013698,2]
[329895202,1718802653619,-500.0,0.00013698,2]
[329895203,1718802653628,-594.78,0.00013698,2]
[329895204,1718802653637,-665.56,0.00013698,2]
[329895205,1718802653646,-567.72,0.00013698,2]
[329895206,1718802653655,-500.0,0.00013698,2]
[329895207,1718802653670,-933.74,0.00013698,2]
[329895208,1718802653679,-624.57,0.00013698,2]
[329895209,1718802653689,-500.0,0.00013698,2]
[329895210,1718802653699,-500.0,0.00013698,2]
[329895211,1718802653708,-500.0,0.00013698,2]
[329895212,1718802653717,-500.0,0.00013698,2]
[329895213,1718802653727,-440.73797351,0.00013698,2]
[329895214,1718802653735,-500.0,0.00013698,2]
[329895215,1718802653747,-500.0,0.00013698,2]
[329895216,1718802653757,-170.31602237,0.00013698,2]
[329895217,1718802653766,-500.0,0.00013698,2]
[329895218,1718802653776,-500.0,0.00013698,2]
[329895219,1718802653785,-813.22,0.00013698,2]
[329895220,1718802653795,-500.0,0.00013698,2]
[329895221,1718802653804,-500.0,0.00013698,2]
[329895222,1718802653814,-555.0,0.00013698,2]
[329895223,1718802653824,-500.0,0.00013698,2]
[329895224,1718802653833,-1107.29,0.00013698,2]
[329895225,1718802653842,-500.0,0.00013698,2]
[329895226,1718802653851,-500.0,0.00013698,2]
[329895227,1718802653860,-972.6,0.00013698,2]
[329895228,1718802653869,-500.0,0.00013698,2]
[329895229,1718802653879,-500.0,0.00013698,2]
[329895230,1718802653888,-694.53,0.00013698,2]
[329895231,1718802653897,-500.0,0.00013698,2]
[329895232,1718802653906,-500.0,0.00013698,2]
[329895233,1718802653915,-500.0,0.00013698,2]
[329895234,1718802653928,-500.0,0.00013698,2]
[329895235,1718802653937,-500.0,0.00013698,2]
[329895236,1718802653946,-500.0,0.00013698,2]
[329895237,1718802653955,-500.0,0.00013698,2]
[329895238,1718802653965,-500.0,0.00013698,2]
[329895239,1718802653975,-500.0,0.00013698,2]
[329895240,1718802653984,-500.0,0.00013698,2]
[329895241,1718802653993,-638.99,0.00013698,2]
[329895242,1718802654003,-547.0,0.00013698,2]
[329895243,1718802654013,-258.04507249,0.00013698,2]
[329895244,1718802654022,-500.0,0.00013698,2]
[329895245,1718802654031,-500.0,0.00013698,2]
[329895246,1718802654041,-397.73888776,0.00013698,2]
[329895247,1718802654051,-990.63,0.00013698,2]
[329895248,1718802654060,-992.23,0.00013698,2]
[329895249,1718802654070,-500.0,0.00013698,2]
[329895250,1718802654079,-500.0,0.00013698,2]
[329895251,1718802654089,-739.94,0.00013698,2]
[329895252,1718802654099,-500.0,0.00013698,2]
[329895253,1718802654108,-500.0,0.00013698,2]
[329895254,1718802654117,-500.0,0.00013698,2]
[329895255,1718802654126,-928.78,0.00013698,2]
[329895256,1718802654135,-640.1,0.00013698,2]
[329895257,1718802654146,-881.92,0.00013698,2]
[329895258,1718802654155,-607.02,0.00013698,2]
[329895259,1718802654164,-500.0,0.00013698,2]
[329895260,1718802654176,-500.0,0.00013698,2]
[329895261,1718802654185,-500.0,0.00013698,2]
[329895262,1718802654195,-830.95,0.00013698,2]
[329895263,1718802654203,-888.65,0.00013698,2]
[329895264,1718802654213,-500.0,0.00013698,2]
[329895265,1718802654222,-500.0,0.00013698,2]
[329895266,1718802654231,-500.0,0.00013698,2]
[329895267,1718802654241,-500.0,0.00013698,2]
[329895268,1718802654250,-500.0,0.00013698,2]
[329895269,1718802654260,-653.68,0.00013698,2]
[329895270,1718802654270,-500.0,0.00013698,2]
[329895271,1718802654279,-500.0,0.00013698,2]
[329895272,1718802654288,-500.0,0.00013698,2]
[329895273,1718802654298,-575.56,0.00013698,2]
[329895274,1718802654307,-500.0,0.00013698,2]
[329895275,1718802654316,-500.0,0.00013698,2]
[329895276,1718802654326,-500.0,0.00013698,2]
[329895277,1718802654336,-794.39,0.00013698,2]
[329895278,1718802654346,-500.0,0.00013698,2]
[329895279,1718802654356,-167.60297695,0.00013698,2]
[329895280,1718802654365,-500.0,0.00013698,2]
[329895281,1718802654374,-181.59189402,0.00013698,2]
[329895282,1718802654383,-734.7,0.00013698,2]
[329895283,1718802654393,-296.20867588,0.00013698,2]
[329895284,1718802654403,-500.0,0.00013698,2]
[329895285,1718802654412,-644.26,0.00013698,2]
[329895286,1718802654423,-500.0,0.00013698,2]
[329895287,1718802654432,-1635.27,0.00013698,2]
[329895288,1718802654442,-500.0,0.00013698,2]
[329895289,1718802654451,-500.0,0.00013698,2]
[329895290,1718802654461,-600.89,0.00013698,2]
[329895291,1718802654470,-500.0,0.00013698,2]
[329895292,1718802654479,-500.0,0.00013698,2]
[329895293,1718802654488,-1307.32,0.00013698,2]
[329895294,1718802654498,-500.0,0.00013698,2]
[329895295,1718802654507,-1555.77,0.00013698,2]
[329895296,1718802654517,-942.04,0.00013698,2]
[329895297,1718802654526,-772.16,0.00013698,2]
[329895298,1718802654535,-560.26,0.00013698,2]
[329895299,1718802654544,-1072.27095348,0.00013698,2]
[329895300,1718802654576,-545.77904652,0.00013698,2]
[329895301,1718802654585,-857.07,0.00013698,2]
[329895302,1718802654594,-500.0,0.00013698,2]
[329895303,1718802654603,-500.0,0.00013698,2]
[329895304,1718802654613,-500.0,0.00013698,2]
[329895305,1718802654623,-500.0,0.00013698,2]
[329895306,1718802654632,-500.0,0.00013698,2]
[329895307,1718802654641,-1347.17,0.00013698,2]
[329895308,1718802654650,-1147.09,0.00013698,2]
[329895309,1718802654660,-500.0,0.00013698,2]
[329895310,1718802654674,-1258.06,0.00013698,2]
[329895311,1718802654684,-500.0,0.00013698,2]
[329895312,1718802654693,-632.6,0.00013698,2]
[329895313,1718802654703,-500.0,0.00013698,2]
[329895314,1718802654714,-380.01983713,0.00013698,2]
[329895315,1718802654741,-955.09016287,0.00013698,2]
[329895316,1718802654751,-535.61,0.00013698,2]
[329895317,1718802654761,-500.0,0.00013698,2]
[329895318,1718802654771,-500.0,0.00013698,2]
[329895319,1718802654780,-2029.69,0.00013698,2]
[329895320,1718802654790,-1141.96,0.00013698,2]
[329895321,1718802654799,-500.0,0.00013698,2]
[329895322,1718802654808,-272.91700097,0.00013698,2]
[329895323,1718802654817,-2138.97,0.00013698,2]
[329895324,1718802654827,-1291.44,0.00013698,2]
[329895325,1718802654837,-500.0,0.00013698,2]
[329895326,1718802654847,-500.0,0.00013698,2]
[329895327,1718802654856,-806.55,0.00013698,2]
[329895328,1718802654865,-99.26983074,0.00013698,2]
[329895329,1718802654877,-1520.17016926,0.00013698,2]
[329895330,1718802654886,-500.0,0.00013698,2]
[329895331,1718802654895,-1902.96,0.00013698,2]
[329895332,1718802654905,-500.0,0.00013698,2]
[329895333,1718802654914,-500.0,0.00013698,2]
[329895334,1718802654926,-1313.89,0.00013698,2]
[329895335,1718802654935,-654.15,0.00013698,2]
[329895336,1718802654945,-504.12,0.00013698,2]
[329895337,1718802654954,-500.0,0.00013698,2]
[329895338,1718802654963,-633.63,0.00013698,2]
[329895339,1718802654973,-1144.83,0.00013698,2]
[329895340,1718802654984,-500.0,0.00013698,2]
[329895341,1718802654993,-2110.43,0.00013698,2]
[329895342,1718802655002,-500.0,0.00013698,2]
[329895343,1718802655011,-500.0,0.00013698,2]
[329895344,1718802655021,-869.28,0.00013698,2]
[329895345,1718802655030,-759.84,0.00013698,2]
[329895346,1718802655040,-500.0,0.00013698,2]
[329895347,1718802655049,-685.4,0.00013698,2]
[329895348,1718802655058,-524.78,0.00013698,2]
[329895349,1718802655067,-500.0,0.00013698,2]
[329895350,1718802655076,-1007.97,0.00013698,2]
[329895351,1718802655086,-1242.1,0.00013698,2]
[329895352,1718802655095,-1086.88,0.00013698,2]
[329895353,1718802655105,-500.0,0.00013698,2]
[329895354,1718802655114,-798.7,0.00013698,2]
[329895355,1718802655124,-1036.8,0.00013698,2]
[329895356,1718802655133,-500.0,0.00013698,2]
[329895357,1718802655142,-537.97,0.00013698,2]
[329895358,1718802655151,-500.0,0.00013698,2]
[329895359,1718802655161,-924.56,0.00013698,2]
[329895360,1718802655174,-1155.6,0.00013698,2]
[329895361,1718802655183,-521.18,0.00013698,2]
[329895362,1718802655193,-1426.05,0.00013698,2]
[329895363,1718802655202,-674.24,0.00013698,2]
[329895364,1718802655212,-500.0,0.00013698,2]
[329895365,1718802655221,-818.19,0.00013698,2]
[329895366,1718802655230,-1085.4,0.00013698,2]
[329895367,1718802655239,-500.0,0.00013698,2]
[329895368,1718802655249,-500.0,0.00013698,2]
[329895369,1718802655258,-652.17,0.00013698,2]
[329895370,1718802655268,-500.0,0.00013698,2]
[329895371,1718802655277,-500.0,0.00013698,2]
[329895372,1718802655296,-829.42,0.00013698,2]
[329895373,1718802655306,-1006.11,0.00013698,2]
[329895374,1718802655315,-1325.33,0.00013698,2]
[329895375,1718802655324,-500.0,0.00013698,2]
[329895376,1718802655334,-1513.05,0.00013698,2]
[329895377,1718802655343,-1000.0,0.00013698,5]
[329895378,1718802655353,-647.31,0.00013698,2]
[329895379,1718802655363,-500.0,0.00013698,2]
[329895380,1718802655371,-500.0,0.00013698,2]
[329895381,1718802655380,-500.0,0.00013698,2]
[329895382,1718802655389,-1112.29,0.00013698,2]
[329895383,1718802655398,-500.0,0.00013698,2]
[329895384,1718802655408,-745.63,0.00013698,2]
[329895385,1718802655420,-500.0,0.00013698,2]
[329895386,1718802655430,-1482.16,0.00013698,2]
[329895387,1718802655439,-500.0,0.00013698,2]
[329895388,1718802655449,-1948.64,0.00013698,2]
[329895389,1718802655458,-773.67,0.00013698,2]
[329895390,1718802655471,-500.0,0.00013698,2]
[329895391,1718802655482,-1220.47,0.00013698,2]
[329895392,1718802655492,-500.0,0.00013698,2]
[329895393,1718802655506,-1084.22,0.00013698,2]
[329895394,1718802655519,-1581.83,0.00013698,2]
[329895395,1718802655528,-500.0,0.00013698,2]
[329895396,1718802655538,-500.0,0.00013698,2]
[329895397,1718802655548,-500.0,0.00013698,2]
[329895398,1718802655557,-1205.15607642,0.00013698,2]
[329895399,1718802655567,-500.0,0.00013698,2]
[329895400,1718802655578,-1744.89,0.00013698,2]
[329895401,1718802655588,-500.0,0.00013698,2]
[329895402,1718802655597,-527.39,0.00013698,2]
[329895403,1718802655606,-427.52576585,0.00013698,2]
[329895404,1718802655616,-1508.63,0.00013698,2]
[329895405,1718802655625,-1406.63,0.00013698,2]
[329895406,1718802655635,-1374.47,0.00013698,2]
[329895407,1718802655644,-500.0,0.00013698,2]
[329895408,1718802655653,-500.0,0.00013698,2]
[329895409,1718802655669,-455.41070609,0.00013698,2]
[329895410,1718802655686,-267.43929391,0.00013698,2]
[329895411,1718802655696,-764.19,0.00013698,2]
[329895412,1718802655707,-500.0,0.00013698,2]
[329895413,1718802655716,-174.85521625,0.00013698,2]
[329895414,1718802655728,-329.96480912,0.00013698,2]
[329895415,1718802655738,-371.8167214,0.00013698,2]
[329895416,1718802655750,-128.1832786,0.00013698,2]
[329895417,1718802655760,-836.57,0.00013698,2]
[329895418,1718802655769,-500.0,0.00013698,2]
[329895419,1718802655779,-314.9217214,0.00013698,2]
[329895420,1718802655790,-431.8782786,0.00013698,2]
[329895421,1718802655800,-500.0,0.00013698,2]
[329895422,1718802655809,-500.0,0.00013698,2]
[329895423,1718802655819,-1042.57,0.00013698,2]
[329895424,1718802655828,-829.68,0.00013698,2]
[329895425,1718802655838,-700.41,0.00013698,2]
[329895426,1718802655848,-555.74,0.00013698,2]
[329895427,1718802655858,-503.35,0.00013698,2]
[329895428,1718802655868,-500.0,0.00013698,2]
[329895429,1718802655878,-1321.18,0.00013698,2]
[329895430,1718802655887,-500.0,0.00013698,2]
[329895431,1718802655897,-500.0,0.00013698,2]
[329895432,1718802655907,-500.0,0.00013698,2]
[329895433,1718802655918,-763.15,0.00013698,2]
[329895434,1718802655929,-649.35660321,0.00013698,2]
[329895435,1718802655938,-1173.21193102,0.00013698,2]
[329895436,1718802655971,-604.56806898,0.00013698,2]
[329895437,1718802655981,-1086.58,0.00013698,2]
[329895438,1718802655991,-1287.72,0.00013698,2]
[329895439,1718802656000,-382.77767337,0.00013698,2]
[329895440,1718802656010,-500.0,0.00013698,2]
[329895441,1718802656019,-503.1816419,0.00013698,2]
[329895442,1718802656029,-500.0,0.00013698,2]
[329895443,1718802656038,-1339.71,0.00013698,2]
[329895444,1718802656048,-500.0,0.00013698,2]
[329895445,1718802656057,-855.67,0.00013698,2]
[329895446,1718802656067,-931.94,0.00013698,2]
[329895447,1718802656077,-511.14,0.00013698,2]
[329895448,1718802656086,-691.61,0.00013698,2]
[329895449,1718802656096,-500.0,0.00013698,2]
[329895450,1718802656107,-500.0,0.00013698,2]
[329895451,1718802656117,-1757.15,0.00013698,2]
[329895452,1718802656126,-500.0,0.00013698,2]
[329895453,1718802656135,-500.0,0.00013698,2]
[329895454,1718802656145,-1757.6,0.00013698,2]
[329895455,1718802656155,-500.0,0.00013698,2]
[329895456,1718802656165,-500.0,0.00013698,2]
[329895457,1718802656176,-500.0,0.00013698,2]
[329895458,1718802656185,-500.0,0.00013698,2]
[329895459,1718802656194,-964.76,0.00013698,2]
[329895460,1718802656204,-1260.97,0.00013698,2]
[329895461,1718802656214,-500.0,0.00013698,2]
[329895462,1718802656224,-1066.48,0.00013698,2]
[329895463,1718802656239,-517.03,0.00013698,2]
[329895464,1718802656249,-850.48,0.00013698,2]
[329895465,1718802656259,-823.71,0.00013698,2]
[329895466,1718802656268,-1306.35,0.00013698,2]
[329895467,1718802656278,-500.0,0.00013698,2]
[329895468,1718802656288,-873.51,0.00013698,2]
[329895469,1718802656299,-477.67239634,0.00013698,2]
[329895470,1718802656309,-523.41378475,0.00013698,2]
[329895471,1718802656318,-500.0,0.00013698,2]
[329895472,1718802656328,-558.47,0.00013698,2]
[329895473,1718802656338,-705.33,0.00013698,2]
[329895474,1718802656348,-1422.44,0.00013698,2]
[329895475,1718802656358,-625.66461353,0.00013698,2]
[329895476,1718802656371,-500.0,0.00013698,2]
[329895477,1718802656381,-1704.3,0.00013698,2]
[329895478,1718802656391,-500.0,0.00013698,2]
[329895479,1718802656406,-500.0,0.00013698,2]
[329895480,1718802656419,-944.91,0.00013698,2]
[329895481,1718802656429,-500.0,0.00013698,2]
[329895482,1718802656439,-1305.35,0.00013698,2]
[329895483,1718802656449,-500.0,0.00013698,2]
[329895484,1718802656460,-1405.57,0.00013698,2]
[329895485,1718802656470,-547.56,0.00013698,2]
[329895486,1718802656480,-500.0,0.00013698,2]
[329895487,1718802656490,-500.0,0.00013698,2]
[329895488,1718802656500,-500.0,0.00013698,2]
[329895489,1718802656510,-500.0,0.00013698,2]